Cogmind - Beta 11.1 @@@ ROGUE MODE // 2022.05.01 @ 02:40:57 Player: Runia Result: Destroyed by G-73 Enforcer with Phase Gun Performance ------------- Evolutions (9) 4500 Regions Visited (32) 6400 Robots Destroyed (267) 1335 Value Destroyed (7157) 7157 Prototype IDs (69) 1380 Alien Tech Used (3) 600 Bonus (2236) 2236 TOTAL SCORE: 23608 Bonus ------- High Alert Combat Kills 416 Follower Combat Kills 1449 Entered DSFs 500 Met Data Miner 300 Friendly Fire -429 Cogmind --------- Core Integrity 0/1600 Matter 144/300 Energy 98/100 System Corruption 4% Temperature Cool (0) Movement Core (50) Location -1/Access Parts ------- > --- POWER (2) -------- (None) > --- PROPULSION (8) --- (None) > --- UTILITY (13) ----- System Shield > --- WEAPON (3) ------- (None) > --- INVENTORY (5) ---- Experimental Power Amplifier Experimental EM Disruption Field Enhanced Nova Cannon Force Lance Peak State ------------ > --- POWER ------------ Antimatter Reactor Micro Antimatter Reactor > --- PROPULSION ------- Combat Gravmag System Combat Gravmag System Combat Gravmag System Combat Gravmag System Combat Antigrav System Combat Antigrav System Combat Antigrav System > --- UTILITY ---------- Advanced Power Amplifier Large Storage Unit Structural Scanner Enhanced Optical Array Long-range Sensor Array Advanced Signal Interpreter Experimental Terrain Scanner Advanced Transmission Jammer Advanced Hacking Suite Advanced System Shield > --- WEAPON ----------- Hypervelocity Railgun Hypervelocity Railgun Fusion Bomb Launcher > --- INVENTORY -------- Light Antimatter Reactor Combat Linear Gravjet Advanced Actuator Array Advanced Force Booster Advanced Cloaking Device Advanced Powered Armor Improved Force Field Improved Trap Extractor Compact HERF Cannon Advanced Plasma Cannon Matter Neutralizer Hypervelocity Railgun Heavy Shock Bomb Launcher Force Lance [Rating: 151] Favorites ----------- Power Light Nuclear Core Engine Light Deuterium Engine Power Core Light Nuclear Core Reactor Fusion Reactor Propulsion Combat Gravmag System Treads Light Treads Leg Centrium Leg Wheel Armored Wheel Hover Unit Combat Gravmag System Flight Unit Field Propulsion Array Utility Large Storage Unit Device Improved Heat Sink Storage Large Storage Unit Processor Enhanced Optical Array Hackware Advanced Hacking Suite Protection Improved Utility Shielding Weapon Advanced Beam Cannon Energy Gun Beamcaster Energy Cannon Advanced Beam Cannon Ballistic Gun Light Assault Rifle Launcher Mini Grenade Launcher Special Weapon Improved Remote Datajack Impact Weapon Mace Slashing Weapon Katana Piercing Weapon Force Lance Build | -11 -10 -10 -9 -9 -8 -7 -7 -7 -7 -6 -6 -6 -6 -6 -6 -6 -5 -5 -5 -5 -5 -4 -4 -4 -4 -4 -4 -3 -3 -2 -2 -1 ------- Run | Scr Mat Min Mat Sto Mat Fac Low Low Dat Pro Fac Was Fac Low Low Zio Pro Fac Upp Upp Zhi Pro Fac Was Fac Arm Lab Res Tes Res DSF Acc Slots Evolved 18 | . . . 2 . 2 2 . . . . 2 . . . . . . 2 . . . . 2 . . . . 2 . 2 . 2 Power 1 | . . . . . . . . . . . . . . . . . . . . . . . 1 . . . . . . . . . Propulsion 6 | . . . 1 . 1 . . . . . . . . . . . . 1 . . . . 1 . . . . 1 . . . 1 Utility 11 | . . . 1 . 1 2 . . . . 2 . . . . . . 1 . . . . . . . . . 1 . 2 . 1 Weapon . | . . . . . . . . . . . . . . . . . . . . . . . . . . . . . . . . . Parts Attached 440 | 2 18 8 38 15 48 6 2 . . 1 35 3 28 2 7 1 3 55 1 4 11 2 35 7 33 19 . 13 30 . 2 11 Power 34 | . 1 1 . 1 3 . . . . . 2 . . . 1 . 1 4 . . 1 . 4 2 5 3 . 1 2 . . 2 Engine 4 | . 1 . . 1 . . . . . . . . . . . . 1 . . . . . . . . . . . . . . 1 Core 17 | . . 1 . . 3 . . . . . 2 . . . 1 . . 3 . . . . 2 . 4 . . . 1 . . . Reactor 13 | . . . . . . . . . . . . . . . . . . 1 . . 1 . 2 2 1 3 . 1 1 . . 1 Propulsion 99 | 2 3 1 9 5 12 3 1 . . 1 9 . 1 . . . . 11 . . 2 2 5 . 6 8 . 2 12 . 1 3 Treads 30 | 2 3 1 9 5 7 . . . . . . . . . . . . . . . . . . . . . . . 2 . . 1 Leg 1 | . . . . . . . . . . . . . . . . . . . . . . . . . . . . . . . . 1 Wheel 1 | . . . . . 1 . . . . . . . . . . . . . . . . . . . . . . . . . . . Hover 60 | . . . . . 4 3 1 . . 1 9 . 1 . . . . 11 . . 2 2 5 . 6 8 . 2 5 . . . Flight 7 | . . . . . . . . . . . . . . . . . . . . . . . . . . . . . 5 . 1 1 Utility 156 | . 3 3 5 1 13 2 1 . . . 14 1 12 . 3 . . 27 . 2 7 . 15 5 19 4 . 5 9 . . 5 Device 72 | . 2 3 2 . 2 . 1 . . . 4 . 2 . 1 . . 13 . 2 3 . 8 2 10 2 . 5 7 . . 3 Storage 6 | . 1 . 1 1 1 . . . . . . . . . . . . . . . 2 . . . . . . . . . . . Processor 10 | . . . . . . 2 . . . . 2 . 2 . 1 . . 1 . . . . . 1 . . . . 1 . . . Hackware 23 | . . . 1 . 1 . . . . . 4 . 4 . . . . 5 . . 1 . 2 . 1 1 . . 1 . . 2 Protection 45 | . . . 1 . 9 . . . . . 4 1 4 . 1 . . 8 . . 1 . 5 2 8 1 . . . . . . Artifact . | . . . . . . . . . . . . . . . . . . . . . . . . . . . . . . . . . Weapon 151 | . 11 3 24 8 20 1 . . . . 10 2 15 2 3 1 2 13 1 2 1 . 11 . 3 4 . 5 7 . 1 1 Energy Gun 12 | . 5 2 5 . . . . . . . . . . . . . . . . . . . . . . . . . . . . . Energy Cannon 51 | . . . . 6 9 . . . . . 3 1 13 . 1 1 . 3 . 2 1 . 4 . 3 . . . 4 . . . Ballistic Gun 16 | . 2 1 10 . . . . . . . . . . . . . . . . . . . . . . 3 . . . . . . Ballistic Cannon . | . . . . . . . . . . . . . . . . . . . . . . . . . . . . . . . . . Launcher 31 | . 3 . 7 2 6 1 . . . . . . . 1 1 . 1 1 . . . . 4 . . . . 2 2 . . . Special Weapon 2 | . . . . . . . . . . . . . . . . . . 2 . . . . . . . . . . . . . . Impact Weapon 2 | . 1 . 1 . . . . . . . . . . . . . . . . . . . . . . . . . . . . . Slashing Weapon 26 | . . . 1 . 5 . . . . . 7 1 2 1 1 . 1 4 1 . . . . . . . . 1 1 . . . Piercing Weapon 11 | . . . . . . . . . . . . . . . . . . 3 . . . . 3 . . 1 . 2 . . 1 1 Special Melee Weapon . | . . . . . . . . . . . . . . . . . . . . . . . . . . . . . . . . . Unidentified Prototypes 30 | . . . 1 2 1 1 1 . . . . . . . . . . 2 . . 6 . . 1 . 1 . 2 12 . . . Corrupted Parts 1 | . . 1 . . . . . . . . . . . . . . . . . . . . . . . . . . . . . . System Corruption 5 | . . 5 . . . . . . . . . . . . . . . . . . . . . . . . . . . . . . Parts Lost 61 | . . . 1 1 3 . . . . 3 1 . 1 1 . . 1 2 . . . . 4 . 10 1 . 17 1 . 5 9 Power 12 | . . . . 1 1 . . . . . 1 . . . . . 1 . . . . . 2 . 3 . . 3 . . . . Propulsion 20 | . . . . . . . . . . 2 . . . . . . . 2 . . . . . . 3 . . 5 1 . 3 4 Utility 23 | . . . 1 . 2 . . . . 1 . . 1 1 . . . . . . . . 1 . 2 1 . 7 . . 1 5 Weapon 6 | . . . . . . . . . . . . . . . . . . . . . . . 1 . 2 . . 2 . . 1 . Highest Loss Streak 12 | . . . 1 1 1 . . . . 2 1 . 1 1 . . 1 1 . . . . 2 . 2 1 . 12 1 . 5 6 To Critical Strikes 2 | . . . . . . . . . . 1 . . . . . . . . . . . . . . . . . 1 . . . . Average Slot Usage (%) 90 | . 98 100 98 100 99 97 99 92 92 88 84 88 88 84 87 84 86 89 94 94 87 94 94 99 90 91 95 84 47 33 29 20 Engine 2 | . 14 3 . 8 2 . . . . . . . . . . . . . . . . . . . . . . . . . . . Core 5 | . . 10 11 2 6 7 7 7 7 6 5 6 6 6 6 6 5 4 5 5 2 . 2 5 5 3 . . . . . . Treads 11 | . 28 28 32 33 32 . . . . . . . . . . . . . . . . . . . . . . . . . . . Hover 15 | . . . . . . 30 29 28 28 26 23 18 18 18 18 18 18 25 27 27 27 27 30 30 26 28 30 26 8 8 6 . Device 8 | . 12 14 14 11 6 7 6 7 7 7 7 9 5 . 6 6 6 9 11 11 10 11 6 10 5 13 15 19 6 . . 1 Storage 7 | . 14 14 11 11 9 7 7 7 7 7 6 6 6 6 6 6 6 5 5 5 5 5 5 5 5 5 5 4 4 4 2 . Processor 7 | . . . . . . 14 14 14 14 14 15 12 12 12 12 12 12 12 11 11 11 11 10 10 10 10 10 9 7 4 4 2 Hackware 10 | . . . 3 11 9 15 14 14 14 13 11 6 12 18 18 18 18 14 16 16 16 16 15 15 15 10 10 7 5 4 4 5 Protection 4 | . . . 3 . 11 . . . . . 4 14 11 9 6 6 6 2 . . . . 6 4 8 2 . . . . . . Energy Gun 2 | . 17 6 8 . . . . . . . . . . . . . . . . . . . . . . . . . . . . . Energy Cannon 4 | . . . . 21 17 . . . . . . 1 1 . 3 3 5 3 5 5 . 5 5 10 4 3 . . . . . . Ballistic Gun 2 | . 9 14 12 . . . . . . . . . . . . . . . . . . . . . . 2 10 4 . . . . Slashing Weapon 2 | . . . . . . 7 7 7 7 6 7 11 11 11 8 6 5 1 2 5 5 5 2 . . . . . . 4 2 . Piercing Weapon 1 | . . . . . . . . . . . . . . . . . . 4 5 5 5 5 4 5 5 4 5 5 3 . 2 1 Naked Turns . | . . . . . . . . . . . . . . . . . . . . . . . . . . . . . . . . . Heaviest Build 111 | 10 31 36 57 94 111 29 29 29 29 29 39 42 45 34 41 41 41 63 63 65 61 61 78 93 93 75 70 72 38 23 23 23 Greatest Support 97 | 40 40 40 63 66 88 29 29 29 29 29 39 39 41 41 41 41 41 70 65 65 67 76 90 78 84 83 74 97 80 23 30 23 Greatest Overweight (x) 8 | . . . . 1 8 . . . . 1 1 1 1 . . . . . . . . . 1 1 1 1 . 1 2 . . 7 Average Overweight (x) . | . . . . . 3 . . . . . . . . . . . . . . . . . . . . . . . . . . . Largest Inventory Capacity 25 | 8 15 15 20 25 25 15 15 15 15 15 15 15 15 15 15 15 15 15 15 15 15 15 15 15 15 15 15 15 15 15 15 5 Average Capacity 16 | 8 14 15 18 21 24 15 15 15 15 15 15 15 15 15 15 15 15 15 15 15 15 15 15 15 15 15 15 15 15 15 11 5 Most Carried 25 | 6 15 15 20 24 25 15 15 15 15 15 15 15 15 15 15 15 15 15 15 15 15 15 15 15 15 15 14 15 15 15 15 5 Average Carried 15 | 2 11 14 17 20 24 13 15 15 15 14 14 14 14 15 13 14 14 14 14 14 14 15 14 14 14 14 14 13 14 14 10 4 Final Capacity 25 | 8 15 15 20 25 15 15 15 15 15 15 15 15 15 15 15 15 15 15 15 15 15 15 15 15 15 15 15 15 15 15 5 5 Final Carried 24 | 2 14 15 20 24 15 15 15 15 15 15 15 15 15 15 14 15 15 15 15 15 15 15 15 15 14 14 14 12 15 14 4 4 Class Distribution -------------------- 28% | Hacker-Scout 24% | Mutant 16% | Hacker-Mutant 11% | Scavenger-Mutant 7% | Hacker-Assassin 3% | Scout 3% | Hacker-Ninja 3% | Commander-Mutant Dominant Class ---------------- Mutant | -10/Materials Mutant | -10/Mines Scavenger-Mutant | -9/Materials Commander-Mutant | -9/Storage Mutant | -8/Materials Hacker-Scout | -7/Factory Hacker-Scout | -7/Lower Caves Hacker-Scout | -7/Lower Caves Hacker-Scout | -7/Data Miner Hacker-Scout | -6/Proximity Caves Hacker-Assassin | -6/Factory Scout | -6/Waste Hacker-Scout | -6/Factory Hacker-Mutant | -6/Lower Caves Hacker-Mutant | -6/Lower Caves Hacker-Mutant | -6/Zion Hacker-Mutant | -5/Proximity Caves Hacker-Scout | -5/Factory Hacker-Scout | -5/Upper Caves Hacker-Scout | -5/Upper Caves Hacker-Scout | -5/Zhirov Hacker-Scout | -4/Proximity Caves Hacker-Scout | -4/Factory Hacker-Assassin | -4/Waste Hacker-Scout | -4/Factory Hacker-Ninja | -4/Armory Hacker-Ninja | -4/Lab Hacker-Ninja | -3/Research Mutant | -3/Testing Mutant | -2/Research Mutant | -2/DSF Mutant | -1/Access Resources | -11 -10 -10 -9 -9 -8 -7 -7 -7 -7 -6 -6 -6 -6 -6 -6 -6 -5 -5 -5 -5 -5 -4 -4 -4 -4 -4 -4 -3 -3 -2 -2 -1 ----------- Run | Scr Mat Min Mat Sto Mat Fac Low Low Dat Pro Fac Was Fac Low Low Zio Pro Fac Upp Upp Zhi Pro Fac Was Fac Arm Lab Res Tes Res DSF Acc Matter Collected 6010 | 223 424 142 715 219 457 112 56 85 . . 425 71 221 100 281 24 13 784 45 34 110 . 238 324 309 19 . 247 132 . . 200 Remotely . | . . . . . . . . . . . . . . . . . . . . . . . . . . . . . . . . . Salvage Created 9955 | 85 398 99 1516 883 2070 20 . 71 . 11 506 286 354 94 110 . 118 762 . 26 296 . 936 . 791 20 . 276 . . . 227 Parts 540 | 4 30 8 111 40 105 1 . . . 4 32 2 18 6 5 . 1 41 . 2 4 . 53 . 38 1 . 17 . . . 17 Haulers Intercepted 22 | . 2 . 5 5 5 . . . . . 2 . 1 . . . . 1 . . . . . . 1 . . . . . . . Recyclers Shooed 6 | . . . 1 . 3 . . . . . . . . . . . . 1 . . . . . . 1 . . . . . . . Parts Field Recycled . | . . . . . . . . . . . . . . . . . . . . . . . . . . . . . . . . . Retrieved Matter . | . . . . . . . . . . . . . . . . . . . . . . . . . . . . . . . . . Parts Self-Destructed 23 | . . . . . . . . . . 11 . . . 3 1 . 2 . . 2 4 . . . . . . . . . . . Prevented . | . . . . . . . . . . . . . . . . . . . . . . . . . . . . . . . . . Kills | -11 -10 -10 -9 -9 -8 -7 -7 -7 -7 -6 -6 -6 -6 -6 -6 -6 -5 -5 -5 -5 -5 -4 -4 -4 -4 -4 -4 -3 -3 -2 -2 -1 ------- Run | Scr Mat Min Mat Sto Mat Fac Low Low Dat Pro Fac Was Fac Low Low Zio Pro Fac Upp Upp Zhi Pro Fac Was Fac Arm Lab Res Tes Res DSF Acc Combat Hostiles Destroyed 150 | . 12 3 35 14 37 . . . . 3 4 . . 3 3 . 4 7 . . . . 16 . 6 1 . 2 . . . . Melee 20 | . . . . . 2 . . . . . 4 . . . . . . 3 . . . . 5 . 5 1 . . . . . . Guns 30 | . 10 3 17 . . . . . . . . . . . . . . . . . . . . . . . . . . . . . Cannons 29 | . . . . 11 17 . . . . . . . . . . . . . . . . . . . 1 . . . . . . . AOE 67 | . 2 . 18 2 15 . . . . 3 . . . 3 3 . 4 4 . . . . 11 . . . . 2 . . . . Classes Destroyed 20 | 1 6 1 3 . 2 . . . . . 1 . . 1 . . 1 . . 1 . . . . 1 1 . 1 . . . . Worker 24 | . 1 1 1 1 3 . . . . . 3 . 1 . . . . 4 . . . . 6 . . . . 1 . . . 2 Builder 18 | . . . 2 . 4 . . . . . 2 . . . . . . 2 . . . . 2 . 1 . . 2 . . . 3 Tunneler 2 | . . 1 . . . . . . . . . . . . . . . . . . . . 1 . . . . . . . . . Hauler 22 | . 2 . 5 5 5 . . . . . 2 . 1 . . . . 1 . . . . . . 1 . . . . . . . Recycler 20 | 1 1 . 5 . 5 . . . . . . . 1 . . . . 2 . . . . 2 . 1 . . 1 . . . 1 Minesweeper 1 | . . . . . . . . . . . . . . . . . . . . 1 . . . . . . . . . . . . Mechanic 1 | . . . . . . . . . . . . . . . . . 1 . . . . . . . . . . . . . . . Operator 7 | . 1 . 1 . . 1 . . . . 1 . 1 . . . . 2 . . . . . . . . . . . . . . Watcher 20 | . 2 . 3 1 3 . . . . . 1 . 2 . . . . 3 . . . . 3 . 1 . . 1 . . . . Swarmer 57 | . 6 1 15 . 11 . . . . 3 . . . 3 3 . . 4 . . . . 11 . . . . . . . . . Cutter 2 | . . . . . . . . . . . . . . . . . . . . . . . . . . . . 2 . . . . Saboteur 1 | . . . . . . . . . . . . . . . . . . . . . . . . . . 1 . . . . . . Grunt 53 | . 6 2 13 12 15 . . . . . . . . . . . 4 . . . . . 1 . . . . . . . . . Duelist 3 | . . . 2 . 1 . . . . . . . . . . . . . . . . . . . . . . . . . . . Protector 1 | . . . . . 1 . . . . . . . . . . . . . . . . . . . . . . . . . . . Sentry 19 | . . . 5 2 8 . . . . . . . . . . . . . . . . . 2 . 2 . . . . . . . Hunter 1 | . . . . . 1 . . . . . . . . . . . . . . . . . . . . . . . . . . . Programmer 13 | . . . . . . . . . . . 4 . . . . . . 3 . . . . 2 . 4 . . . . . . . Packrat 1 | . . . . . . . . 1 . . . . . . . . . . . . . . . . . . . . . . . . Samaritan 2 | . . . . . . . . . . . . . . 1 1 . . . . . . . . . . . . . . . . . Martyr 2 | . . . . . . . . . . . . . . . . . . . . . . . . . 2 . . . . . . . Best Kill Streak 8 | 1 5 1 8 5 6 1 . . . 3 2 . 1 3 3 . 5 5 . 1 . . 6 . 2 1 . 3 . . . 4 Combat Bots Only 7 | . 5 1 7 5 5 . . . . 3 2 . . 3 3 . 4 4 . . . . 4 . 2 1 . 2 . . . . Max Kills in Single Turn 5 | 1 2 1 5 2 5 1 . 1 . 1 1 . 1 2 2 . 4 2 . 1 . . 5 . 1 1 . 2 . . . 1 Gunslinging 1 | . . . 1 . . . . . . . . . . . . . . . . . . . . . . . . . . . . . Exploded 5 | . 2 . 4 2 5 . . . . 1 . . . 2 2 . 3 2 . . . . 3 . . . . 1 . . . . Melee 1 | . . . . . 1 . . . . . 1 . . . . . . 1 . . . . 1 . 1 1 . . . . . . Uniques/NPCs Destroyed . | . . . . . . . . . . . . . . . . . . . . . . . . . . . . . . . . . Combat | -11 -10 -10 -9 -9 -8 -7 -7 -7 -7 -6 -6 -6 -6 -6 -6 -6 -5 -5 -5 -5 -5 -4 -4 -4 -4 -4 -4 -3 -3 -2 -2 -1 -------- Run | Scr Mat Min Mat Sto Mat Fac Low Low Dat Pro Fac Was Fac Low Low Zio Pro Fac Upp Upp Zhi Pro Fac Was Fac Arm Lab Res Tes Res DSF Acc Damage Taken 17090 | . 464 145 695 466 1669 151 . . . 185 253 . 496 51 34 21 492 1464 . . . 65 1456 . 2286 333 . 2281 543 28 498 3014 Core 4141 | . 37 39 110 105 225 45 . . . 28 76 . 159 18 . . 80 240 . . . . 206 . 206 74 . 478 144 . 256 1615 Absorbed by Shields 25 | . . . . . . . . . . . . . . . . . . . . . . . . . . . . . . . . 25 Redirected to Shielding 961 | . . . . . 37 . . . . . 36 . 135 12 . . . 273 . . . . 244 . 206 18 . . . . . . Regen/Repaired (Parts) 458 | . . . . 71 . . . . . . . . . . . 175 . 78 . . . . 134 . . . . . . . . . Core Remaining (%) 68 | 100 . 69 . 46 59 . . . . 89 . . . . . . 60 . . . . 76 . . . . 52 . 52 . 82 . Volleys Fired 409 | 3 44 11 72 40 104 1 . 1 . 6 7 5 7 2 3 . 2 63 . . . 3 9 . 20 3 . 3 . . . . Largest 3 | 2 2 2 2 2 2 1 . 1 . 1 1 1 1 1 1 . 1 1 . . . 1 1 . 1 3 . 1 . . . . Hottest 150 | 60 130 100 150 136 136 30 . 30 . 30 90 75 90 50 85 . 50 98 . . . 98 105 . 105 120 . 52 . . . . Shots Fired 659 | 6 82 19 130 79 200 1 . 1 . 6 7 5 7 2 3 . 2 63 . . . 3 10 1 20 9 . 3 . . . . Gun 227 | 6 76 19 117 . . . . . . . . . . . . . . . . . . . . . . 9 . . . . . . Cannon 369 | . . . . 78 192 . . . . . 7 5 7 . 1 . . 50 . . . 3 5 1 20 . . . . . . . Launcher 53 | . 6 . 13 1 8 1 . 1 . 6 . . . 2 2 . 2 3 . . . . 5 . . . . 3 . . . . Special 10 | . . . . . . . . . . . . . . . . . . 10 . . . . . . . . . . . . . . Kinetic 97 | 3 16 11 58 . . . . . . . . . . . . . . . . . . . . . . 9 . . . . . . Thermal 488 | 3 60 8 59 78 192 . . . . . 7 . 4 . 1 . . 47 . . . 3 5 1 20 . . . . . . . Explosive 53 | . 6 . 13 1 8 1 . 1 . 6 . . . 2 2 . 2 3 . . . . 5 . . . . 3 . . . . Electromagnetic 11 | . . . . . . . . . . . . 5 3 . . . . 3 . . . . . . . . . . . . . . Robot Hit Streak 15 | 3 9 5 13 15 11 . . . . . 1 3 2 . 2 . 2 7 . . . . 5 6 7 3 . 4 . . . . Robot Miss Streak 17 | 1 17 5 4 3 4 . . . . 1 2 1 . . 5 . 4 2 . . . . . . 2 1 . . . . . . Penetration Max . | . . . . . . . . . . . . . . . . . . . . . . . . . . . . . . . . . Secondary Targets 5 | . 3 . 2 . . . . . . . . . . . . . . . . . . . . . . . . . . . . . Max Gunslinging Chain 1 | . 1 . 1 . . . . . . . . . . . . . . . . . . . . . . . . . . . . . Shots Hit Robots 595 | 4 64 16 87 52 142 2 . 1 . . 30 4 20 1 2 . 1 52 . 1 7 . 40 1 48 6 . 6 2 . . 6 Core Hits 362 | 2 52 10 63 21 74 . . 1 . 7 12 . 6 5 6 . 17 23 . . 3 . 28 . 20 2 . 5 . . . 5 Critical Kills 4 | . . . . 1 3 . . . . . . . . . . . . . . . . . . . . . . . . . . . Critical Parts Destroyed 2 | . . . . . . . . . . . . . . . . . . . . . . . . . . 2 . . . . . . Critical Strikes 28 | . . . 3 1 3 . . . . . 2 . . . . . . 2 . . 2 . 7 . 3 2 . 1 . . . 2 Burn 3 | . . . 3 . . . . . . . . . . . . . . . . . . . . . . . . . . . . . Meltdown 4 | . . . . 1 3 . . . . . . . . . . . . . . . . . . . . . . . . . . . Destroy 2 | . . . . . . . . . . . . . . . . . . . . . . . . . . 2 . . . . . . Sever 2 | . . . . . . . . . . . 2 . . . . . . . . . . . . . . . . . . . . . Impale 17 | . . . . . . . . . . . . . . . . . . 2 . . 2 . 7 . 3 . . 1 . . . 2 Melee Attacks 581 | . 1 2 2 . 12 11 2 11 . . 100 . 47 3 16 . 8 109 . 2 7 13 87 . 76 14 1 22 25 . . 10 Impact 4 | . 1 2 1 . . . . . . . . . . . . . . . . . . . . . . . . . . . . . Slashing 260 | . . . 1 . 12 11 2 11 . . 100 . 47 3 16 . 8 30 . 1 . 4 4 . . . . 4 6 . . . Piercing 317 | . . . . . . . . . . . . . . . . . . 79 . 1 7 9 83 . 76 14 1 18 19 . . 10 Sneak Attacks 66 | . . 2 . . 2 2 . 1 . . 11 . 6 1 1 . . 11 . 1 . . 9 . 8 . . 4 1 . . 6 Combat Hostiles 3 | . . . . . . . . . . . . . . . . . . 2 . . . . . . 1 . . . . . . . Follow-up Attacks 8 | . . . . . . . . . . . 2 . 2 . . . . 2 . . . . 2 . . . . . . . . . Damage Inflicted 24570 | 38 851 309 2888 1256 4929 175 . 79 . 200 1500 129 1126 161 183 . 759 2515 . 84 411 . 2991 37 2367 51 . 617 204 . . 710 Guns 2511 | 38 680 200 1542 . . . . . . . . . . . . . . . . . . . . . . 51 . . . . . . Cannons 4666 | . . . . 1109 2850 . . . . . 63 129 31 . . . . 150 . . . . 33 37 264 . . . . . . . Explosions 6506 | . 171 . 1346 147 1687 . . . . 200 . . . 98 105 . 759 586 . . . . 1087 . 48 . . 272 . . . . Melee 10881 | . . 109 . . 392 175 . 79 . . 1437 . 1095 63 78 . . 1779 . 84 411 . 1871 . 2055 . . 345 204 . . 704 Ramming 6 | . . . . . . . . . . . . . . . . . . . . . . . . . . . . . . . . 6 Kinetic 883 | 6 99 132 595 . . . . . . . . . . . . . . . . . . . . . . 51 . . . . . . Thermal 6510 | 32 581 68 947 1109 3278 . . . . . 63 . . . . . . 98 . . . . 33 37 264 . . . . . . . Explosive 6030 | . 171 . 1346 147 1259 . . . . 200 . . . 98 105 . 759 586 . . . . 1087 . . . . 272 . . . . Electromagnetic 260 | . . . . . . . . . . . . 129 31 . . . . 52 . . . . . . 48 . . . . . . . Impact 109 | . . 109 . . . . . . . . . . . . . . . . . . . . . . . . . . . . . . Slashing 3816 | . . . . . 392 175 . 79 . . 1437 . 1095 63 78 . . 497 . . . . . . . . . . . . . . Piercing 6956 | . . . . . . . . . . . . . . . . . . 1282 . 84 411 . 1871 . 2055 . . 345 204 . . 704 Highest Corruption 25 | . . 6 . . . . . . . . 5 5 5 5 5 5 . 10 10 10 10 10 13 13 25 25 25 8 8 . 2 3 Average Corruption 7 | . . 4 . . . . . . . . 4 5 5 5 5 5 . 3 10 10 10 10 5 13 16 25 25 8 8 . 1 2 Corruption Purged 4 | . . . . . . . . . . . 4 . . . . . . . . . . . . . . . . . . . . . Corruption Blocked . | . . . . . . . . . . . . . . . . . . . . . . . . . . . . . . . . . Effects 223 | . . 2 . . . . . . . . 12 7 24 4 5 1 . 30 3 6 3 8 16 6 51 22 . 9 13 . . 1 Message Errors 57 | . . . . . . . . . . . . 1 7 1 . . . 9 1 4 . 3 4 1 15 6 . . 4 . . 1 Matter Fused 41 | . . 1 . . . . . . . . 7 2 4 1 1 . . 7 1 . 1 1 2 2 7 2 . . 2 . . . Heat Flow Errors 28 | . . 1 . . . . . . . . . 2 5 1 . 1 . 1 1 . . 2 1 1 6 3 . . 3 . . . Energy Discharges 27 | . . . . . . . . . . . 2 . 3 . 1 . . 4 . 1 1 2 1 1 4 1 . 4 2 . . . Parts Rejected 6 | . . . . . . . . . . . . . . . . . . 1 . . . . 1 . 2 1 . . 1 . . . Data Loss (minor) 29 | . . . . . . . . . . . 1 1 2 1 1 . . 3 . 1 1 . 2 . 8 4 . 4 . . . . Data Loss (major) 13 | . . . . . . . . . . . 1 . 2 . 1 . . 2 . . . . 2 . 2 2 . 1 . . . . Misfires 4 | . . . . . . . . . . . . . . . . . . 1 . . . . 1 1 1 . . . . . . . Alerts 9 | . . . . . . . . . . . 1 1 1 . 1 . . 1 . . . . . . 1 2 . . 1 . . . Misdirections 7 | . . . . . . . . . . . . . . . . . . . . . . . 2 . 4 1 . . . . . . Weapon Failures 2 | . . . . . . . . . . . . . . . . . . 1 . . . . . . 1 . . . . . . . Overload Shots . | . . . . . . . . . . . . . . . . . . . . . . . . . . . . . . . . . Overflow Damage 2596 | . . . 55 11 137 110 . . . . 273 . 152 . 73 . 27 252 . 44 199 . 714 7 231 . . 106 36 . . 169 Projectiles 78 | . . . . 11 30 . . . . . . . . . . . . . . . . . . 7 30 . . . . . . . Explosions 388 | . . . 55 . 67 . . . . . . . . . . . 27 41 . . . . 100 . . . . 1 . . . 97 Melee 2130 | . . . . . 40 110 . . . . 273 . 152 . 73 . . 211 . 44 199 . 614 . 201 . . 105 36 . . 72 Knockbacks . | . . . . . . . . . . . . . . . . . . . . . . . . . . . . . . . . . Impact . | . . . . . . . . . . . . . . . . . . . . . . . . . . . . . . . . . Kinetic . | . . . . . . . . . . . . . . . . . . . . . . . . . . . . . . . . . Secondary . | . . . . . . . . . . . . . . . . . . . . . . . . . . . . . . . . . Self-Inflicted Damage 679 | . 55 . 4 . 130 . . . . 16 . . . 12 . . . . . . . . 162 . 29 . . 156 . . . 115 Shots 14 | . 2 . 1 . 3 . . . . 1 . . . 1 . . . . . . . . 2 . 1 . . 2 . . . 1 Rammed 1 | . . . . . . . . . . . . . . . . . . . . . . . . . . . . . . . . 1 Targets Rammed 1 | . . . . . . . . . . . . . . . . . . . . . . . . . . . . . . . . 1 Kicked . | . . . . . . . . . . . . . . . . . . . . . . . . . . . . . . . . . Crushed . | . . . . . . . . . . . . . . . . . . . . . . . . . . . . . . . . . Highest Temperature 357 | 20 261 84 209 254 357 . . . . . 152 124 258 193 30 221 17 252 164 . . 245 223 161 296 295 5 296 225 . . . Average Temperature 87 | 15 101 18 62 85 107 . . . . . 58 38 71 103 16 113 10 66 79 . . 114 62 86 80 89 5 130 107 . . . Received Heat Transfer 2848 | . 135 42 216 264 729 39 . . . 30 . . 66 . . 9 132 135 . . . 9 163 . 249 130 . 194 78 . . 228 Effects 11 | . 1 . . 1 2 . . . . . . . 1 . . . . . . . . . . . 3 2 . 1 . . . . Energy Bleed 8 | . 1 . . 1 2 . . . . . . . . . . . . . . . . . . . 3 . . 1 . . . . Interference 3 | . . . . . . . . . . . . . 1 . . . . . . . . . . . . 2 . . . . . . Siege Activations . | . . . . . . . . . . . . . . . . . . . . . . . . . . . . . . . . . Robots Corrupted 1 | . . . . . . . . . . . . 1 . . . . . . . . . . . . . . . . . . . . Combat Hostiles 1 | . . . . . . . . . . . . 1 . . . . . . . . . . . . . . . . . . . . Parts Fried . | . . . . . . . . . . . . . . . . . . . . . . . . . . . . . . . . . Impact Corruptions . | . . . . . . . . . . . . . . . . . . . . . . . . . . . . . . . . . Robots Melted 5 | . . . . 1 4 . . . . . . . . . . . . . . . . . . . . . . . . . . . Combat Hostiles 4 | . . . . 1 3 . . . . . . . . . . . . . . . . . . . . . . . . . . . Parts Melted 28 | . . . 3 9 14 . . . . . . . . . . . . 2 . . . . . . . . . . . . . . Heat Transferred 10658 | 75 820 102 1846 1998 5258 . . . . . 100 . . . . . . 150 . . . . 50 37 222 . . . . . . . Parts Sabotaged 3 | . . . . . . . . . . . . . . . . . . . . . . . . . . 3 . . . . . . Parts Stolen . | . . . . . . . . . . . . . . . . . . . . . . . . . . . . . . . . . Parts Stripped . | . . . . . . . . . . . . . . . . . . . . . . . . . . . . . . . . . Power Chain Reactions . | . . . . . . . . . . . . . . . . . . . . . . . . . . . . . . . . . Missiles Intercepted . | . . . . . . . . . . . . . . . . . . . . . . . . . . . . . . . . . Alert | -11 -10 -10 -9 -9 -8 -7 -7 -7 -7 -6 -6 -6 -6 -6 -6 -6 -5 -5 -5 -5 -5 -4 -4 -4 -4 -4 -4 -3 -3 -2 -2 -1 ------- Run | Scr Mat Min Mat Sto Mat Fac Low Low Dat Pro Fac Was Fac Low Low Zio Pro Fac Upp Upp Zhi Pro Fac Was Fac Arm Lab Res Tes Res DSF Acc Peak Influence 1340 | 5 431 147 841 424 669 516 . . . . 205 40 1340 . . . . 675 . . . . 835 292 598 314 . 208 267 73 54 176 Initial 303 | . 3 142 . 146 27 303 . . . . 126 40 28 . . . . 2 . . . . . 292 204 273 . . 88 73 54 2 Average 294 | 1 150 88 490 255 254 354 . . . . 103 40 1061 . . . . 329 . . . . 223 292 361 233 . 128 163 73 35 63 Maximum Alert Level 4 | . 2 . 3 2 2 2 . . . . 1 . 4 . . . . 2 . . . . 3 1 2 1 . 1 1 . . . Low Security (%) 42 | 100 62 100 10 24 44 . . . . . 99 100 5 . . . . 11 . . . . 42 . 3 37 . 98 54 100 100 100 Level 1 36 | . 37 . 39 69 26 78 . . . . . . 1 . . . . 65 . . . . 45 100 59 62 . 1 45 . . . Level 2 12 | . . . 20 5 28 21 . . . . . . . . . . . 23 . . . . 10 . 36 . . . . . . . Level 3 3 | . . . 29 . . . . . . . . . 11 . . . . . . . . . 2 . . . . . . . . . Level 4 4 | . . . . . . . . . . . . . 80 . . . . . . . . . . . . . . . . . . . Level 5 . | . . . . . . . . . . . . . . . . . . . . . . . . . . . . . . . . . High Security . | . . . . . . . . . . . . . . . . . . . . . . . . . . . . . . . . . Max Security . | . . . . . . . . . . . . . . . . . . . . . . . . . . . . . . . . . Squads Dispatched 76 | . 3 1 4 1 3 2 . . . . 11 . 16 . . . 1 11 . . . . 11 . 5 2 . 3 1 . 1 . Investigation 30 | . 2 1 1 . 2 . . . . . 6 . 7 . . . . 4 . . . . 3 . . 2 . 1 1 . . . Extermination 12 | . . . . . . . . . . . 3 . . . . . . 3 . . . . 2 . 3 . . 1 . . . . Reinforcement 26 | . 1 . 2 . . 2 . . . . 2 . 5 . . . . 4 . . . . 6 . 2 . . 1 . . 1 . Assault 6 | . . . 1 . 1 . . . . . . . 3 . . . 1 . . . . . . . . . . . . . . . Garrison 2 | . . . . 1 . . . . . . . . 1 . . . . . . . . . . . . . . . . . . . Intercept . | . . . . . . . . . . . . . . . . . . . . . . . . . . . . . . . . . Searches Triggered 1 | . . . . . . . . . . . . . . . . . . 1 . . . . . . . . . . . . . . Data Miner Redirects 17 | . . . . . . . . . . . 5 . 7 . . . . 3 . . . . . . . 1 . 1 . . . . Construction Impeded 2 | . . . . . . . . . . . . . 1 . . . . . . . . . . . 1 . . . . . . . Haulers Reinforced 2 | . . . . . . . . . . . . . 1 . . . . . . . . . 1 . . . . . . . . . Active Scanning Responses . | . . . . . . . . . . . . . . . . . . . . . . . . . . . . . . . . . Cargo Convoy Interrupts . | . . . . . . . . . . . . . . . . . . . . . . . . . . . . . . . . . Stealth | -11 -10 -10 -9 -9 -8 -7 -7 -7 -7 -6 -6 -6 -6 -6 -6 -6 -5 -5 -5 -5 -5 -4 -4 -4 -4 -4 -4 -3 -3 -2 -2 -1 --------- Run | Scr Mat Min Mat Sto Mat Fac Low Low Dat Pro Fac Was Fac Low Low Zio Pro Fac Upp Upp Zhi Pro Fac Was Fac Arm Lab Res Tes Res DSF Acc Distress Signals 18 | . . . 2 1 5 1 . . . . . . 2 . . . . . . . . . 3 . 2 . . . 1 . . 1 Communications Jammed 33 | . . . . . . . . . . . . . . . . . 1 13 . . . . . . . 19 . . . . . . Distress Signals 33 | . . . . . . . . . . . . . . . . . 1 13 . . . . . . . 19 . . . . . . Times Spotted 482 | . 21 3 49 20 56 13 . . . 9 12 . 31 3 2 1 16 66 . 1 . 6 52 . 37 16 . 17 20 1 4 26 Peak Tracking Total 19 | . 5 2 6 4 7 10 . . . 6 2 . 12 3 1 1 6 7 . 1 . 6 10 . 9 10 . 9 13 3 4 19 Tactical Retreats 52 | . 2 1 . 1 . 3 . . . 1 . . 4 . . . 4 8 . 1 . . 8 . 8 2 . 2 4 . . 3 Traps | -11 -10 -10 -9 -9 -8 -7 -7 -7 -7 -6 -6 -6 -6 -6 -6 -6 -5 -5 -5 -5 -5 -4 -4 -4 -4 -4 -4 -3 -3 -2 -2 -1 ------- Run | Scr Mat Min Mat Sto Mat Fac Low Low Dat Pro Fac Was Fac Low Low Zio Pro Fac Upp Upp Zhi Pro Fac Was Fac Arm Lab Res Tes Res DSF Acc Traps Triggered 27 | . . 1 . . 2 . . . . . 5 . 6 . . . . 3 . . . . 4 . 1 . . . 4 . . 1 Indirectly . | . . . . . . . . . . . . . . . . . . . . . . . . . . . . . . . . . Trap Hack Attempts . | . . . . . . . . . . . . . . . . . . . . . . . . . . . . . . . . . Triggered . | . . . . . . . . . . . . . . . . . . . . . . . . . . . . . . . . . Disarmed . | . . . . . . . . . . . . . . . . . . . . . . . . . . . . . . . . . Reprogrammed . | . . . . . . . . . . . . . . . . . . . . . . . . . . . . . . . . . Reused 3 | . . . . . . . . . . . . . . . . . . 1 . . . . . . 1 . . . . . . 1 Traps Extracted 6 | . . 6 . . . . . . . . . . . . . . . . . . . . . . . . . . . . . . Installed 6 | . . . . . . . . . . . . . 1 . . . . 1 . . . . . . 2 . . . . . . 2 Triggered 5 | . . . . . . . 1 . . . . . . . . . 1 1 . . . . . . 1 . . . . . . 1 Most Traps Carried 6 | . . 6 6 6 6 6 6 6 6 6 6 6 6 5 5 5 5 5 4 6 6 6 6 6 6 4 3 3 3 3 3 3 Machines | -11 -10 -10 -9 -9 -8 -7 -7 -7 -7 -6 -6 -6 -6 -6 -6 -6 -5 -5 -5 -5 -5 -4 -4 -4 -4 -4 -4 -3 -3 -2 -2 -1 ---------- Run | Scr Mat Min Mat Sto Mat Fac Low Low Dat Pro Fac Was Fac Low Low Zio Pro Fac Upp Upp Zhi Pro Fac Was Fac Arm Lab Res Tes Res DSF Acc Machines Disabled 69 | . 4 . 5 . 5 . . . . . . . 16 . . . . 7 . . . . 11 . 13 1 . 1 5 . . 1 Max in Single Turn 5 | . 3 . 2 . 2 . . . . . . . 1 . . . . 1 . . . . 4 . 5 1 . 1 1 . . 1 Garrison Access 7 | . . . . 1 . . . . . . . . 1 . . . . 3 . . . . 1 . 1 . . . . . . . Energy Cycler 1 | . . . . . . . . . . . . . . . . . . . . . . . . . . . . . . . . 1 Machines Sabotaged . | . . . . . . . . . . . . . . . . . . . . . . . . . . . . . . . . . Garrisons Compromised . | . . . . . . . . . . . . . . . . . . . . . . . . . . . . . . . . . Overloaded Fab Kills . | . . . . . . . . . . . . . . . . . . . . . . . . . . . . . . . . . Hacking | -11 -10 -10 -9 -9 -8 -7 -7 -7 -7 -6 -6 -6 -6 -6 -6 -6 -5 -5 -5 -5 -5 -4 -4 -4 -4 -4 -4 -3 -3 -2 -2 -1 --------- Run | Scr Mat Min Mat Sto Mat Fac Low Low Dat Pro Fac Was Fac Low Low Zio Pro Fac Upp Upp Zhi Pro Fac Was Fac Arm Lab Res Tes Res DSF Acc Machines Accessed 147 | . 9 2 9 13 10 2 . . 4 . 19 . 11 . . . . 29 . . 4 . 13 . 6 5 . 3 6 1 . 1 Terminals 80 | . 7 . 8 10 8 2 . . . . 8 . 2 . . . . 15 . . . . 6 . 3 3 . 2 4 1 . 1 Fabricators 22 | . . . . . . . . . . . 4 . 4 . . . . 5 . . . . 5 . 1 2 . . 1 . . . Repair Stations 7 | . . . . 1 . . . . . . 1 . 1 . . . . 3 . . . . 1 . . . . . . . . . Recycling Units 8 | . 2 . . 1 1 . . . . . 2 . 1 . . . . 1 . . . . . . . . . . . . . . Scanalyzers 10 | . . . 1 . 1 . . . . . 3 . 1 . . . . 1 . . . . . . 1 . . 1 1 . . . Garrison Access 10 | . . . . 1 . . . . . . 1 . 2 . . . . 4 . . . . 1 . 1 . . . . . . . Total Hacks 487 | . 22 2 33 31 32 6 . . 30 . 78 . 27 . . . . 98 . . 17 . 42 . 27 20 . 8 11 1 . 2 Successful 288 | . 8 2 18 18 17 2 . . 30 . 43 . 14 . . . . 61 . . 17 . 29 . 12 10 . 4 1 1 . 1 Failed 198 | . 13 . 15 13 15 4 . . . . 35 . 13 . . . . 37 . . . . 13 . 15 10 . 4 10 . . 1 Catastrophic 38 | . 3 . . . 4 1 . . . . 10 . 4 . . . . 6 . . . . 2 . 3 1 . 1 2 . . 1 Database Lockouts 1 | . 1 . . . . . . . . . . . . . . . . . . . . . . . . . . . . . . . Manual 151 | . 20 . 17 12 11 . . . . . 24 . 8 . . . . 37 . . . . 6 . 12 4 . . . . . . Terminals 262 | . 20 . 26 23 23 6 . . . . 29 . 2 . . . . 65 . . . . 25 . 17 11 . 5 7 1 . 2 Fabricators 74 | . . . . . . . . . . . 19 . 14 . . . . 16 . . . . 13 . 2 9 . . 1 . . . Repair Stations 16 | . . . . 2 . . . . . . 2 . 3 . . . . 7 . . . . 2 . . . . . . . . . Recycling Units 19 | . 2 . . 5 1 . . . . . 9 . 1 . . . . 1 . . . . . . . . . . . . . . Scanalyzers 49 | . . . 7 . 8 . . . . . 16 . 3 . . . . 4 . . . . . . 5 . . 3 3 . . . Garrison Access 18 | . . . . 1 . . . . . . 3 . 4 . . . . 5 . . . . 2 . 3 . . . . . . . Terminal Hacks 151 | . 2 2 10 13 8 2 . . 30 . 9 . . . . . . 29 . . 17 . 13 . 8 4 . 2 . 1 . 1 Record 16 | . . . . . . . . . 11 . . . . . . . . . . . 5 . . . . . . . . . . . Part Schematic 35 | . . . . . . . . . 10 . 3 . . . . . . 9 . . 4 . 3 . 4 2 . . . . . . Robot Schematic 6 | . . . . . . . . . 6 . . . . . . . . . . . . . . . . . . . . . . . Robot Analysis 10 | . 1 . 1 3 1 . . . . . . . . . . . . . . . 4 . . . . . . . . . . . Prototype ID Bank 19 | . . . 2 1 3 . . . 3 . 1 . . . . . . 2 . . 4 . . . 1 . . 1 . . . 1 Open Door 8 | . . 2 . 6 . . . . . . . . . . . . . . . . . . . . . . . . . . . . Open DSF 1 | . . . . . . . . . . . . . . . . . . . . . . . . . . . . . . 1 . . Branch Access Points 5 | . . . . . . 1 . . . . 1 . . . . . . 1 . . . . 1 . 1 . . . . . . . Machine Index 1 | . . . . . . . . . . . . . . . . . . 1 . . . . . . . . . . . . . . Terminal Index 3 | . . . 1 . 1 . . . . . . . . . . . . . . . . . 1 . . . . . . . . . Fabricator Index 1 | . . . . . . . . . . . . . . . . . . 1 . . . . . . . . . . . . . . Scanalyzer Index 2 | . . . . . . . . . . . . . . . . . . 2 . . . . . . . . . . . . . . Alert Level 4 | . . . 1 1 1 . . . . . 1 . . . . . . . . . . . . . . . . . . . . . Unreport Threat 11 | . . . 3 2 1 . . . . . . . . . . . . 2 . . . . 1 . 1 1 . . . . . . Locate Traps 11 | . . . 1 . 1 . . . . . 1 . . . . . . 5 . . . . 2 . 1 . . . . . . . Recall Investigation 2 | . . . . . . . . . . . 1 . . . . . . 1 . . . . . . . . . . . . . . Recall Reinforcements 2 | . . . . . . . . . . . . . . . . . . . . . . . 2 . . . . . . . . . Hauler Manifests 4 | . . . . . . . . . . . 1 . . . . . . 2 . . . . 1 . . . . . . . . . Registered Components 1 | . . . . . . . . . . . . . . . . . . 1 . . . . . . . . . . . . . . Registered Prototypes 1 | . . . . . . . . . . . . . . . . . . . . . . . 1 . . . . . . . . . Zone Layout 8 | . 1 . 1 . . 1 . . . . . . . . . . . 2 . . . . 1 . . 1 . 1 . . . . Fabricator Hacks 44 | . . . . . . . . . . . 9 . 7 . . . . 12 . . . . 8 . 2 5 . . 1 . . . Network Status 6 | . . . . . . . . . . . 1 . . . . . . 1 . . . . 2 . . 1 . . 1 . . . Load Schematic 24 | . . . . . . . . . . . 6 . 5 . . . . 6 . . . . 4 . 1 2 . . . . . . Build 14 | . . . . . . . . . . . 2 . 2 . . . . 5 . . . . 2 . 1 2 . . . . . . Repair Station Hacks 12 | . . . . 2 . . . . . . 1 . 1 . . . . 6 . . . . 2 . . . . . . . . . Scan Component 7 | . . . . 1 . . . . . . 1 . 1 . . . . 3 . . . . 1 . . . . . . . . . Repair 4 | . . . . 1 . . . . . . . . . . . . . 2 . . . . 1 . . . . . . . . . Refit 1 | . . . . . . . . . . . . . . . . . . 1 . . . . . . . . . . . . . . Recycling Unit Hacks 6 | . . . . 1 1 . . . . . 2 . 1 . . . . 1 . . . . . . . . . . . . . . Retrieve Components 6 | . . . . 1 1 . . . . . 2 . 1 . . . . 1 . . . . . . . . . . . . . . Scanalyzer 34 | . . . 7 . 8 . . . . . 11 . 1 . . . . 4 . . . . . . 1 . . 2 . . . . Insert Component 18 | . . . 3 . 4 . . . . . 6 . 1 . . . . 2 . . . . . . 1 . . 1 . . . . Analyze 16 | . . . 4 . 4 . . . . . 5 . . . . . . 2 . . . . . . . . . 1 . . . . Garrison Access Hacks 6 | . . . . 1 . . . . . . . . . . . . . 3 . . . . 1 . 1 . . . . . . . Seal Access 6 | . . . . 1 . . . . . . . . . . . . . 3 . . . . 1 . 1 . . . . . . . Unauthorized Hacks 35 | . 6 . 1 1 . . . . . . 11 . 4 . . . . 6 . . . . 5 . . 1 . . . . . . Terminals 11 | . 4 . 1 . . . . . . . 2 . . . . . . 4 . . . . . . . . . . . . . . Track 1 | . 1 . . . . . . . . . . . . . . . . . . . . . . . . . . . . . . . Assimilate 2 | . . . . . . . . . . . . . . . . . . 2 . . . . . . . . . . . . . . Botnet 5 | . 2 . . . . . . . . . 2 . . . . . . 1 . . . . . . . . . . . . . . Disrupt 1 | . . . . . . . . . . . . . . . . . . 1 . . . . . . . . . . . . . . Operators 2 | . 1 . 1 . . . . . . . . . . . . . . . . . . . . . . . . . . . . . Fabricators 18 | . . . . . . . . . . . 6 . 4 . . . . 2 . . . . 5 . . 1 . . . . . . Prioritize 5 | . . . . . . . . . . . 1 . 1 . . . . 1 . . . . 1 . . 1 . . . . . . Liberate 1 | . . . . . . . . . . . . . . . . . . 1 . . . . . . . . . . . . . . Haulers 3 | . . . . . . . . . . . 1 . 1 . . . . . . . . . 1 . . . . . . . . . Recompile 9 | . . . . . . . . . . . 4 . 2 . . . . . . . . . 3 . . . . . . . . . Repair Stations . | . . . . . . . . . . . . . . . . . . . . . . . . . . . . . . . . . Recycling Units 6 | . 2 . . 1 . . . . . . 3 . . . . . . . . . . . . . . . . . . . . . Reject 3 | . . . . 1 . . . . . . 2 . . . . . . . . . . . . . . . . . . . . . Recyclers 1 | . . . . . . . . . . . 1 . . . . . . . . . . . . . . . . . . . . . Tunnel 2 | . 2 . . . . . . . . . . . . . . . . . . . . . . . . . . . . . . . Scanalyzers . | . . . . . . . . . . . . . . . . . . . . . . . . . . . . . . . . . Garrison Access . | . . . . . . . . . . . . . . . . . . . . . . . . . . . . . . . . . Data Cores Recovered 1 | . . . 1 . . . . . . . . . . . . . . . . . . . . . . . . . . . . . Used 1 | . . . 1 . . . . . . . . . . . . . . . . . . . . . . . . . . . . . Hacking Detections 107 | . 7 . 8 9 9 2 . . . . 17 . 8 . . . . 22 . . . . 7 . 4 5 . 3 5 . . 1 Full Trace Events 18 | . 2 . 2 . 2 . . . . . 2 . 2 . . . . 4 . . . . . . . 2 . 1 1 . . . Feedback Events . | . . . . . . . . . . . . . . . . . . . . . . . . . . . . . . . . . Feedback Blocked . | . . . . . . . . . . . . . . . . . . . . . . . . . . . . . . . . . Robot Schematics Acquired 6 | . . . . . . . . . 6 . . . . . . . . . . . . . . . . . . . . . . . Robots Built . | . . . . . . . . . . . . . . . . . . . . . . . . . . . . . . . . . Authchips . | . . . . . . . . . . . . . . . . . . . . . . . . . . . . . . . . . Time . | . . . . . . . . . . . . . . . . . . . . . . . . . . . . . . . . . Total Robot Build Rating . | . . . . . . . . . . . . . . . . . . . . . . . . . . . . . . . . . Part Schematics Acquired 48 | . . . 3 . 3 . . . 10 . 8 . . . . . . 11 . . 4 . 3 . 4 2 . . . . . . Parts Built 19 | . . . . . . . . . . . 2 . 3 . . . . 7 . . . . 2 . 1 4 . . . . . . Authchips 9 | . . . . . . . . . . . 2 . 1 . . . . 3 . . . . 1 . 1 1 . . . . . . Time 1015 | . . . . . . . . . . . 219 . 159 . . . . 275 . . . . 128 . 64 170 . . . . . . Total Part Build Rating 121 | . . . . . . . . . . . 11 . 18 . . . . 40 . . . . 16 . 8 28 . . . . . . Parts Repaired 4 | . . . . 1 . . . . . . . . . . . . . 2 . . . . 1 . . . . . . . . . Time 202 | . . . . 32 . . . . . . . . . . . . . 90 . . . . 80 . . . . . . . . . Parts Recycled . | . . . . . . . . . . . . . . . . . . . . . . . . . . . . . . . . . Recycled Matter . | . . . . . . . . . . . . . . . . . . . . . . . . . . . . . . . . . Retrieved Matter . | . . . . . . . . . . . . . . . . . . . . . . . . . . . . . . . . . Retrieved Components 28 | . . . . 3 10 . . . . . 5 . 2 . . . . 8 . . . . . . . . . . . . . . Parts Scanalyzed 14 | . . . 3 . 4 . . . . . 4 . . . . . . 2 . . . . . . 1 . . . . . . . Part Schematics Acquired 13 | . . . 3 . 3 . . . . . 5 . . . . . . 2 . . . . . . . . . . . . . . Parts Damaged 1 | . . . . . . . . . . . 1 . . . . . . . . . . . . . . . . . . . . . Bothacking | -11 -10 -10 -9 -9 -8 -7 -7 -7 -7 -6 -6 -6 -6 -6 -6 -6 -5 -5 -5 -5 -5 -4 -4 -4 -4 -4 -4 -3 -3 -2 -2 -1 ------------ Run | Scr Mat Min Mat Sto Mat Fac Low Low Dat Pro Fac Was Fac Low Low Zio Pro Fac Upp Upp Zhi Pro Fac Was Fac Arm Lab Res Tes Res DSF Acc Used RIF Installer . | . . . . . . . . . . . . . . . . . . . . . . . . . . . . . . . . . Robots Hacked . | . . . . . . . . . . . . . . . . . . . . . . . . . . . . . . . . . Non-combat . | . . . . . . . . . . . . . . . . . . . . . . . . . . . . . . . . . Combat . | . . . . . . . . . . . . . . . . . . . . . . . . . . . . . . . . . Robot Hacks Applied . | . . . . . . . . . . . . . . . . . . . . . . . . . . . . . . . . . Relay Couplers Released 7 | . . . . . . . . . . . . . 1 . . . . . . . . . . . 6 . . . . . . . Machine Destruction 4 | . . . . . . . . . . . . . 1 . . . . . . . . . . . 3 . . . . . . . Programmers 3 | . . . . . . . . . . . . . . . . . . . . . . . . . 3 . . . . . . . Fabnet Peak Effective % . | . . . . . . . . . . . . . . . . . . . . . . . . . . . . . . . . . Robots Rewired . | . . . . . . . . . . . . . . . . . . . . . . . . . . . . . . . . . Allies Hacked . | . . . . . . . . . . . . . . . . . . . . . . . . . . . . . . . . . Hacks Repelled . | . . . . . . . . . . . . . . . . . . . . . . . . . . . . . . . . . Allies | -11 -10 -10 -9 -9 -8 -7 -7 -7 -7 -6 -6 -6 -6 -6 -6 -6 -5 -5 -5 -5 -5 -4 -4 -4 -4 -4 -4 -3 -3 -2 -2 -1 -------- Run | Scr Mat Min Mat Sto Mat Fac Low Low Dat Pro Fac Was Fac Low Low Zio Pro Fac Upp Upp Zhi Pro Fac Was Fac Arm Lab Res Tes Res DSF Acc Total Allies 60 | . . . . 10 . . . . . 1 . 20 . . . 5 . 4 . . . . . 20 . . . . . . . . Largest Group 20 | . . . . 10 . . . . . 1 . 20 20 . . 5 3 3 . . . . . 20 5 . . . . . . . Highest-Rated Group 833 | . . . . 88 . . . . . 96 . 756 756 . . 124 68 90 . . . . . 833 195 . . . . . . . Highest-Rated Ally 96 | . . . . 16 . . . . . 96 . 50 50 . . 31 28 30 . . . . . 50 50 . . . . . . . Total Orders 16 | . . . . . . . . . . . . . . . . . . 14 . . . . 2 . . . . . . . . . RETURN 16 | . . . . . . . . . . . . . . . . . . 14 . . . . 2 . . . . . . . . . Ally Attacks 300 | . . . . 43 . . . . . 21 . . 87 . . 5 6 105 . . . . 10 . 23 . . . . . . . Total Damage 10739 | . . . . 372 . . . . . 611 . . 5978 . . 52 118 2409 . . . . 300 . 899 . . . . . . . Kills 65 | . . . . 6 . . . . . 6 . . 36 . . . . 11 . . . . 2 . 4 . . . . . . . Allies Corrupted 1 | . . . . . . . . . . . . . . . . . . . . . . . 1 . . . . . . . . . Allies Melted 1 | . . . . . . . . . . . . . . . . . 1 . . . . . . . . . . . . . . . Intel | -11 -10 -10 -9 -9 -8 -7 -7 -7 -7 -6 -6 -6 -6 -6 -6 -6 -5 -5 -5 -5 -5 -4 -4 -4 -4 -4 -4 -3 -3 -2 -2 -1 ------- Run | Scr Mat Min Mat Sto Mat Fac Low Low Dat Pro Fac Was Fac Low Low Zio Pro Fac Upp Upp Zhi Pro Fac Was Fac Arm Lab Res Tes Res DSF Acc Robot Analysis Total 10 | . 1 . 1 3 1 . . . . . . . . . . . . . . . 4 . . . . . . . . . . . Derelict Logs Recovered 15 | . . 2 . . . . 2 1 . 1 . . . 3 2 1 1 . 1 . . 1 . . . . . . . . . . Drone Launches 24 | . . . . . . . . . . . . . . . . . . 21 . . . . 3 . . . . . . . . . Drone Recoveries 23 | . . . . . . . . . . . . . . . . . . 21 . . . . 2 . . . . . . . . . Decoded 0b10 Intel 16 | . . . . . . . . . . . . . . . . . . 16 . . . . . . . . . . . . . . Traps 2 | . . . . . . . . . . . . . . . . . . 2 . . . . . . . . . . . . . . Items 10 | . . . . . . . . . . . . . . . . . . 10 . . . . . . . . . . . . . . Patrols 1 | . . . . . . . . . . . . . . . . . . 1 . . . . . . . . . . . . . . Guards 3 | . . . . . . . . . . . . . . . . . . 3 . . . . . . . . . . . . . . Exploration | -11 -10 -10 -9 -9 -8 -7 -7 -7 -7 -6 -6 -6 -6 -6 -6 -6 -5 -5 -5 -5 -5 -4 -4 -4 -4 -4 -4 -3 -3 -2 -2 -1 ------------- Run | Scr Mat Min Mat Sto Mat Fac Low Low Dat Pro Fac Was Fac Low Low Zio Pro Fac Upp Upp Zhi Pro Fac Was Fac Arm Lab Res Tes Res DSF Acc Turns Passed 19595 | 17 1322 959 1407 1210 2193 245 162 210 35 261 1699 270 994 162 261 608 414 2632 97 215 150 208 1093 201 1028 392 12 384 490 18 27 219 Spaces Moved 18346 | 3 682 545 654 530 734 379 335 393 77 375 1837 341 1407 259 376 906 687 2726 163 351 170 295 1146 192 902 366 15 413 642 44 57 344 Core 155 | . . . . . . . . . . . . . . . . . . . . . . . . . . . . . . . . 155 Treads 2864 | 3 682 545 654 530 438 . . . . . . . . . . . . . . . . . . . . . . . 12 . . . Legs . | . . . . . . . . . . . . . . . . . . . . . . . . . . . . . . . . . Wheels 261 | . . . . . 261 . . . . . . . . . . . . . . . . . . . . . . . . . . . Hover 14324 | . . . . . 35 379 335 393 77 375 1837 341 1407 259 376 906 687 2726 163 351 170 295 1146 192 902 366 15 413 178 . . . Flight 742 | . . . . . . . . . . . . . . . . . . . . . . . . . . . . . 452 44 57 189 Fastest Speed 28 | 160 160 160 160 160 48 45 45 45 45 45 45 48 48 55 55 55 55 50 58 58 58 29 28 50 50 43 64 50 34 37 37 37 Average Speed 77 | 160 160 160 160 181 223 45 45 45 45 46 66 53 52 55 55 55 55 60 58 58 58 46 52 92 69 60 64 68 52 37 37 44 Slowest Speed 400 | 160 160 160 160 240 242 48 45 45 45 108 108 98 111 55 55 55 55 65 58 58 58 58 105 113 128 138 64 142 220 37 40 400 Overloaded Moves 27 | . . . . . . . . . . . . . . . . . . . . . . 17 10 . . . . . . . . . Propulsion Burnouts . | . . . . . . . . . . . . . . . . . . . . . . . . . . . . . . . . . Robots Hopped 2 | . . . . . . . . . . . . . . . . . . . . . . . . . . . . . 2 . . . Cave-ins Triggered 1 | . . . . . . . . . . . . . . . . . . . . . . . . . . . . 1 . . . . Teleports 1 | . . . . . . . . . . . . . . . . . . . . . . . . . . 1 . . . . . . Exploration Rate (%) 54 | 1 93 83 76 73 60 14 57 57 72 53 57 95 49 59 51 82 80 86 38 70 61 54 43 83 34 27 6 15 76 1 86 14 Regions Visited 32 Branch Regions 17 Pre-discovered Areas 16 | . 2 1 . . . . . . 1 1 . . . 2 1 3 . . 1 . 3 1 . . . . . . . . . . Known Exits Taken 21 | . . . 1 . . 1 1 1 1 1 . . 1 1 1 1 1 1 1 1 1 1 . . 1 1 1 1 . 1 . . Unknown Exits Taken 6 | 1 1 1 . 1 1 . . . . . . . . . . . . . . . . . . . . . . . 1 . . . Scrap Searched 21 | . . 1 . . . . 3 3 . . . . . 2 2 3 3 . 2 2 . . . . . . . . . . . . Spaces Dug 424 | . 31 . 2 . 1 9 1 10 . 3 63 . 20 30 13 . 8 91 . . . 12 58 . 28 11 1 15 14 . . 3 Terrain Destroyed 980 | . 56 . 62 11 113 17 1 20 . 18 64 . 20 69 64 . 75 120 . . . 12 135 . 54 11 1 26 14 . . 17 Melee 281 | . 1 . 2 . 1 9 1 10 . . 61 . 16 2 12 . 8 52 . . . 9 33 . 20 11 1 15 14 . . 3 Projectile 67 | . . . 1 . . . . . . . 3 . 4 . 1 . . 42 . . . 3 2 . 11 . . . . . . . AOE 632 | . 55 . 59 11 112 8 . 10 . 18 . . . 67 51 . 67 26 . . . . 100 . 23 . . 11 . . . 14 Terrain Rammed . | . . . . . . . . . . . . . . . . . . . . . . . . . . . . . . . . . Walls Destroyed . | . . . . . . . . . . . . . . . . . . . . . . . . . . . . . . . . . Machines Disabled . | . . . . . . . . . . . . . . . . . . . . . . . . . . . . . . . . . Actions | -11 -10 -10 -9 -9 -8 -7 -7 -7 -7 -6 -6 -6 -6 -6 -6 -6 -5 -5 -5 -5 -5 -4 -4 -4 -4 -4 -4 -3 -3 -2 -2 -1 --------- Run | Scr Mat Min Mat Sto Mat Fac Low Low Dat Pro Fac Was Fac Low Low Zio Pro Fac Upp Upp Zhi Pro Fac Was Fac Arm Lab Res Tes Res DSF Acc Total 21932 | 12 831 611 886 702 1068 431 342 408 76 458 2173 423 1589 267 402 1016 705 3461 165 359 205 342 1443 215 1115 499 15 468 752 45 62 386 Wait 1720 | 1 59 35 77 89 119 32 . 4 . 74 152 70 91 2 1 106 5 466 . 1 . 34 144 . 68 84 . 5 . . . 1 Move 18312 | 2 681 544 653 529 733 378 334 392 76 374 1837 340 1406 258 375 905 686 2725 162 350 169 294 1146 191 901 365 14 412 637 43 56 344 Hop 2 | . . . . . . . . . . . . . . . . . . . . . . . . . . . . . 2 . . . Pick Up 178 | . 16 3 18 13 20 3 1 . . . 22 2 8 . . 2 . 19 1 . 4 . 12 6 6 2 . 6 9 1 3 1 Fast Attach 145 | . 6 3 6 3 3 . 2 . . . 10 . 2 . 2 . . 19 . 2 10 . 7 6 16 12 . 3 23 . 1 9 Attach 75 | 2 . . 2 1 11 3 . . . 1 7 . 4 . 2 1 1 8 . . . . 7 . 7 2 . 7 6 . 1 2 Detach 27 | . . 1 1 1 1 . . . . 2 . . 1 . 1 1 1 . . 1 1 . . . . 2 . 1 10 . . 2 Swap 224 | . 12 5 30 11 35 3 1 . . . 18 3 22 2 3 . 2 28 1 2 2 2 21 1 10 6 . 3 1 . . . Drop 258 | 4 12 7 25 15 30 . 2 . . 1 26 3 8 . 2 1 . 29 1 2 12 . 14 11 9 9 . 6 24 1 1 3 Fire 409 | 3 44 11 72 40 104 1 . 1 . 6 7 5 7 2 3 . 2 63 . . . 3 9 . 20 3 . 3 . . . . Melee 549 | . 1 2 2 . 12 11 2 11 . . 94 . 39 3 13 . 8 103 . 1 7 9 83 . 76 14 1 22 25 . . 10 Ram 1 | . . . . . . . . . . . . . . . . . . . . . . . . . . . . . . . . 1 Kick . | . . . . . . . . . . . . . . . . . . . . . . . . . . . . . . . . . Crush . | . . . . . . . . . . . . . . . . . . . . . . . . . . . . . . . . . Escape Stasis 26 | . . . . . . . . . . . . . . . . . . . . . . . . . . . . . 15 . . 11 Rewire . | . . . . . . . . . . . . . . . . . . . . . . . . . . . . . . . . . Trap 6 | . . . . . . . . . . . . . 1 . . . . 1 . . . . . . 2 . . . . . . 2 Miscellaneous . | . . . . . . . . . . . . . . . . . . . . . . . . . . . . . . . . . Route ------- -11/Scrapyard -10/Materials (discovered 5 exits: *Mat x3 / *Min x2) -10/Mines (discovered 3 exits: *Mat x2 / [*Exi]) -9/Materials (discovered 3 exits: *Mat x2 / *Sto) -9/Storage -8/Materials -7/Factory (discovered 2 exits: *Low x2) -7/Lower Caves -7/Lower Caves (discovered 2 exits: *Fac / *Dat) -7/Data Miner -6/Proximity Caves -6/Factory (discovered 5 exits: *Fac / *Low x2 / Ext x2) -6/Waste -6/Factory (discovered 4 exits: *Fac x2 / *Low x2) -6/Lower Caves -6/Lower Caves -6/Zion -5/Proximity Caves -5/Factory (discovered 5 exits: *Fac x3 / *Upp x2) -5/Upper Caves -5/Upper Caves -5/Zhirov -4/Proximity Caves -4/Factory (discovered 6 exits: *Res x3 / Upp x2 / Arm) -4/Waste -4/Factory (discovered 4 exits: *Res / Upp x2 / *Arm) -4/Armory -4/Lab -3/Research -3/Testing -2/Research -2/DSF -1/Access History --------- Turn | Location | Event 15 | -11/Scrapyard | Discovered new exit (range 3) 18 | -11/Scrapyard | Entered Materials 177 | -10/Materials | Discovered new exit (range 4) 256 | -10/Materials | Discovered new exit (range 9) 307 | -10/Materials | Build established: Mutant 329 | -10/Materials | Discovered new exit (range 10) 644 | -10/Materials | Discovered new exit (range 6) 730 | -10/Materials | Central database locked down 796 | -10/Materials | Discovered new exit (range 15) 1340 | -10/Materials | Entered Mines 1468 | -10/Mines | Deemed a non-threat by the Exiles lab entrance 1468 | -10/Mines | Discovered new exit (range 5) 1552 | -10/Mines | Met a Derelict shopkeep closing up shop 1732 | -10/Mines | Learned location of Storage (-9) 1982 | -10/Mines | Discovered new exit (range 11) 2089 | -10/Mines | Learned Materials emergency access door positions 2094 | -10/Mines | Discovered new exit (range 7) 2111 | -10/Mines | Met a Derelict who couldn't figure out how to use a Trap Extractor 2299 | -10/Mines | Entered Materials 2299 | -9/Materials | Evolved 2 slots: Propulsion x1, Utility x1 2300 | -9/Materials | Identified exit to Storage 2645 | -9/Materials | Build established: Scavenger-Mutant 2671 | -9/Materials | Discovered new exit (range 3) 3099 | -9/Materials | First assault squad dispatched 3161 | -9/Materials | Destroyed 7 combat bots 3285 | -9/Materials | Discovered new exit (range 14) 3706 | -9/Materials | Entered Storage 3834 | -9/Storage | Found Prototype Launcher 3834 | -9/Storage | Identified Scatter Rocket Array 4141 | -9/Storage | Garrison activated, responded to threat 4301 | -9/Storage | Assisted by bots powering up and referring to "LRC-V3" 4318 | -9/Storage | Core integrity fell below 50% 4597 | -9/Storage | Build established: Commander-Mutant 4811 | -9/Storage | Discovered new exit (range 16) 4869 | -9/Storage | Repaired Med. Armor Plating 4916 | -9/Storage | Entered Materials 4916 | -8/Materials | Evolved 2 slots: Propulsion x1, Utility x1 5493 | -8/Materials | Build established: Mutant 6265 | -8/Materials | Discovered new exit (range 16) 6916 | -8/Materials | First assault squad dispatched 7109 | -8/Materials | Entered Factory 7109 | -7/Factory | Evolved 2 slots: Utility x2 7153 | -7/Factory | Identified exit to Lower Caves 7354 | -7/Factory | Entered Lower Caves 7372 | -7/Lower Caves | Learned location of 1 exit from Factory 7374 | -7/Lower Caves | Learned 4 Factory zone layouts 7400 | -7/Lower Caves | Build established: Hacker-Scout 7469 | -7/Lower Caves | Encountered a Warlord checkpoint 7497 | -7/Lower Caves | Discovered new exit (range 14) 7508 | -7/Lower Caves | Found Alien Artifact 7508 | -7/Lower Caves | Identified Core Expander 7508 | -7/Lower Caves | Installed Core Expander, added new Weapon slot 7516 | -7/Lower Caves | Identified exit to Lower Caves 7516 | -7/Lower Caves | Entered another Lower Caves area 7535 | -7/Lower Caves | Discovered new exit (range 10) 7539 | -7/Lower Caves | Identified exit to Factory 7614 | -7/Lower Caves | Encountered a Warlord checkpoint 7672 | -7/Lower Caves | Discovered new exit (range 4) 7674 | -7/Lower Caves | Identified exit to Data Miner 7687 | -7/Lower Caves | Learned Factory non-interactive machine intel 7726 | -7/Lower Caves | Entered Data Miner 7726 | -7/Data Miner | Discovered new exit (range 6) 7733 | -7/Data Miner | Met Data Miner 7743 | -7/Data Miner | Learned location of Section 7 (-2) 7743 | -7/Data Miner | Acquired the access code to Warlord's prototype stash 7750 | -7/Data Miner | Received God Mode back door access code from Data Miner 7760 | -7/Data Miner | Identified exit to Proximity Caves 7761 | -7/Data Miner | Entered Proximity Caves 7853 | -6/Proximity Caves | Escorted by Enhanced Grunt 7922 | -6/Proximity Caves | Attracted the attention of an 0b10 checkpoint 8019 | -6/Proximity Caves | Discovered exit to Factory (range 6) 8022 | -6/Proximity Caves | Entered Factory 8022 | -6/Factory | Evolved 2 slots: Utility x2 8023 | -6/Factory | Identified exit to Factory 8024 | -6/Factory | Identified exit to Extension 8025 | -6/Factory | Loaded intel: 227 non-interactive machine locations 8091 | -6/Factory | Found Launcher Loader 8143 | -6/Factory | Identified exit to Lower Caves 8351 | -6/Factory | Incoming investigation squad redirected 8415 | -6/Factory | Incoming investigation squad redirected 8575 | -6/Factory | Build established: Hacker-Assassin 9182 | -6/Factory | Fabricated Exp. Propulsion Shielding (x1) 9203 | -6/Factory | Incoming investigation squad redirected 9488 | -6/Factory | Incoming investigation squad redirected 9695 | -6/Factory | Fabricated Combat Drone Bay (x1) 9714 | -6/Factory | Incoming investigation squad redirected 9720 | -6/Factory | Build established: Scout 9721 | -6/Factory | Manually triggered Chute Trap 9721 | -6/Factory | Sucked down chute 9721 | -6/Factory | Entered Waste 9722 | -6/Waste | Joined by Warlord forces that had cleared the area 9760 | -6/Waste | Found Broken Imp. Powered Armor 9921 | -6/Waste | Discovered new exit (range 12) 9934 | -6/Waste | Identified exit to Factory 9991 | -6/Waste | Entered Factory 9991 | -6/Factory | Accompanied by 20 allies 10042 | -6/Factory | Garrison activated, responded to threat 10162 | -6/Factory | Discovered exit to Factory (range 17) 10312 | -6/Factory | Incoming investigation squad redirected 10361 | -6/Factory | Spotted B-75 Beast 10387 | -6/Factory | Fabricated Adv. Hacking Suite (x1) 10441 | -6/Factory | Discovered exit to Lower Caves (range 16) 10504 | -6/Factory | Build established: Hacker-Scout 10521 | -6/Factory | Incoming investigation squad redirected 10568 | -6/Factory | Discovered exit to Factory (range 15) 10691 | -6/Factory | First assault squad dispatched 10706 | -6/Factory | Incoming assault squad redirected 10715 | -6/Factory | Incoming investigation squad redirected 10735 | -6/Factory | Incoming investigation squad redirected 10824 | -6/Factory | Incoming investigation squad redirected 10854 | -6/Factory | Incoming investigation squad redirected 10936 | -6/Factory | Fabricated Cmb. Gravmag System? 10979 | -6/Factory | Discovered exit to Lower Caves (range 7) 10985 | -6/Factory | Entered Lower Caves 11092 | -6/Lower Caves | Identified exit to Lower Caves 11122 | -6/Lower Caves | Build established: Hacker-Mutant 11134 | -6/Lower Caves | Encountered a Warlord checkpoint 11138 | -6/Lower Caves | Learned location of Zion (-6) 11147 | -6/Lower Caves | Entered another Lower Caves area 11178 | -6/Lower Caves | Learned Factory emergency access door positions 11405 | -6/Lower Caves | Discovered new exit (range 6) 11407 | -6/Lower Caves | Identified exit to Zion 11408 | -6/Lower Caves | Entered Zion 11426 | -6/Zion | System corruption cleaned by Quarantine Array 11454 | -6/Zion | Discovered new exit (range 13) 11582 | -6/Zion | Gained Derelict followers 11618 | -6/Zion | Learned location of Armory (-4) 11640 | -6/Zion | Acquired unknown access codes intercepted by a Zionite 11832 | -6/Zion | Visited the Megawrench Repair Shop 11832 | -6/Zion | Megawrench repaired 8 parts 11916 | -6/Zion | Identified exit to Proximity Caves 12016 | -6/Zion | Entered Proximity Caves 12016 | -5/Proximity Caves | Accompanied by 3 allies 12057 | -5/Proximity Caves | Spotted B-75 Beast 12214 | -5/Proximity Caves | Learned Factory terminal intel 12383 | -5/Proximity Caves | Attracted the attention of an 0b10 outpost 12425 | -5/Proximity Caves | Discovered exit to Factory (range 11) 12430 | -5/Proximity Caves | Entered Factory 12430 | -5/Factory | Evolved 2 slots: Propulsion x1, Utility x1 12432 | -5/Factory | Loaded intel: 26 terminal locations 12515 | -5/Factory | Discovered new exit (range 15) 12522 | -5/Factory | Identified exit to Upper Caves 12635 | -5/Factory | Incoming investigation squad redirected 12640 | -5/Factory | Spotted B-75 Beast 12730 | -5/Factory | Search patrols dispatched 13159 | -5/Factory | Fabricated Cmb. Gravmag System? 13210 | -5/Factory | Fabricated Cmb. Gravmag System (x2) 13303 | -5/Factory | Build established: Hacker-Scout 13421 | -5/Factory | Discovered new exit (range 18) 13490 | -5/Factory | Incoming investigation squad redirected 13824 | -5/Factory | Fabricated Exp. Utility Shielding (x1) 14026 | -5/Factory | Discovered exit to Upper Caves (range 13) 14047 | -5/Factory | Incoming investigation squad redirected 14105 | -5/Factory | Fabricated Exp. Propulsion Shielding (x1) 14130 | -5/Factory | Discovered new exit (range 7) 14135 | -5/Factory | Identified exit to Factory 14490 | -5/Factory | Repaired Hvy. Pick 14546 | -5/Factory | Repaired Exp. Utility Shielding 14631 | -5/Factory | Fabricated Adv. Hacking Suite? 14929 | -5/Factory | Discovered exit to Factory (range 4) 14950 | -5/Factory | System corruption reached 10% 15062 | -5/Factory | Entered Upper Caves 15135 | -5/Upper Caves | Discovered new exit (range 18) 15146 | -5/Upper Caves | Identified exit to Upper Caves 15148 | -5/Upper Caves | Encountered a Warlord checkpoint 15159 | -5/Upper Caves | Entered another Upper Caves area 15275 | -5/Upper Caves | Attracted the attention of an 0b10 checkpoint 15302 | -5/Upper Caves | Encountered a Warlord checkpoint 15344 | -5/Upper Caves | Discovered new exit (range 19) 15374 | -5/Upper Caves | Identified exit to Zhirov 15374 | -5/Upper Caves | Entered Zhirov 15375 | -5/Zhirov | Discovered new exit (range 3) 15396 | -5/Zhirov | Learned location of Quarantine (-2) 15396 | -5/Zhirov | Learned location of Testing (-3) 15396 | -5/Zhirov | Learned location of Command (-1) 15411 | -5/Zhirov | Found Alien Artifact 15411 | -5/Zhirov | Identified Integrated Reactor 15411 | -5/Zhirov | Installed Integrated Reactor, increased core energy generation (+10) 15495 | -5/Zhirov | Found Alien Artifact 15523 | -5/Zhirov | Identified exit to Proximity Caves 15524 | -5/Zhirov | Entered Proximity Caves 15663 | -4/Proximity Caves | Spotted B-86 Titan 15729 | -4/Proximity Caves | Discovered exit to Factory (range 11) 15731 | -4/Proximity Caves | Attracted the attention of an 0b10 outpost 15732 | -4/Proximity Caves | Entered Factory 15732 | -4/Factory | Evolved 2 slots: Power x1, Propulsion x1 15881 | -4/Factory | Repaired Exp. Utility Shielding 16056 | -4/Factory | Discovered new exit (range 22) 16259 | -4/Factory | Discovered new exit (range 4) 16263 | -4/Factory | Identified exit to Research 16282 | -4/Factory | Identified exit to Upper Caves 16282 | -4/Factory | Identified exit to Armory 16532 | -4/Factory | Discovered exit to Research (range 14) 16556 | -4/Factory | System corruption reached 10% 16585 | -4/Factory | Found Quantum Capacitor 16590 | -4/Factory | Spotted B-86 Titan 16622 | -4/Factory | Fabricated Fusion Bomb Launcher? 16657 | -4/Factory | Fabricated Adv. Powered Armor (x1) 16825 | -4/Factory | Sucked down chute 16825 | -4/Factory | Entered Waste 16826 | -4/Waste | Joined by Warlord forces that had cleared the area 16828 | -4/Waste | Found Prototype Device 16828 | -4/Waste | Identified Exp. Terrain Scanner 16950 | -4/Waste | Found Adv. Force Booster 16951 | -4/Waste | Discovered new exit (range 22) 16972 | -4/Waste | Found Unknown Device 16972 | -4/Waste | Identified Antimissile System 17024 | -4/Waste | Identified exit to Factory 17026 | -4/Waste | Entered Factory 17026 | -4/Factory | Accompanied by 5 allies 17641 | -4/Factory | Fabricated Adv. Powered Armor (x1) 17778 | -4/Factory | Discovered exit to Research (range 14) 17799 | -4/Factory | Spotted B-86 Titan 18054 | -4/Factory | Entered Armory 18122 | -4/Armory | Fabricated Cmb. Gravmag System (x2) 18201 | -4/Armory | Incoming investigation squad redirected 18241 | -4/Armory | Build established: Hacker-Ninja 18284 | -4/Armory | Fabricated Cmb. Antigrav System (x2) 18445 | -4/Armory | Identified Transdimensional Reconstructor 18445 | -4/Armory | Warped through subspace to slip node 18445 | -4/Armory | Discovered new exit (range 1) 18445 | -4/Armory | Identified exit to Lab 18446 | -4/Armory | Entered Lab 18446 | -4/Lab | Discovered exit to Research (range 9) 18454 | -4/Lab | Unable to decrypt terminal 18458 | -4/Lab | Entered Research 18458 | -3/Research | Evolved 2 slots: Propulsion x1, Utility x1 18506 | -3/Research | Incoming investigation squad redirected 18563 | -3/Research | Spotted B-86 Titan 18572 | -3/Research | Crushed by falling debris 18627 | -3/Research | Spotted B-86 Titan 18669 | -3/Research | Found Prototype Device 18669 | -3/Research | Identified Exp. Focal Shield 18835 | -3/Research | Discovered new exit (range 7) 18839 | -3/Research | Lost 12 parts (2p2n6u2w) 18841 | -3/Research | Identified exit to Testing 18842 | -3/Research | Entered Testing 18870 | -3/Testing | Lost 3 parts (2n1u) 18965 | -3/Testing | Found Prototype Energy Cannon 18965 | -3/Testing | Identified Hpw. Disruptor Cannon 19001 | -3/Testing | Found Prototype Hackware 19001 | -3/Testing | Identified Exp. System Shield 19018 | -3/Testing | Found Prototype Device 19018 | -3/Testing | Identified Exp. EM Disruption Field 19023 | -3/Testing | Found Prototype Launcher 19024 | -3/Testing | Identified Hellfire Missile Launcher 19035 | -3/Testing | Found Prototype Processor 19035 | -3/Testing | Identified Exp. Melee Analysis Suite 19167 | -3/Testing | Spotted Striker 19167 | -3/Testing | Spotted Striker 19195 | -3/Testing | Found Prototype Launcher 19195 | -3/Testing | Identified Tactical Quantum Warhead 19215 | -3/Testing | Found Prototype Energy Cannon 19215 | -3/Testing | Identified Potential Cannon 19218 | -3/Testing | Found Potential Cannon 19247 | -3/Testing | Found Prototype Energy Cannon 19247 | -3/Testing | Identified Disintegrator 19277 | -3/Testing | Found Prototype Energy Cannon 19277 | -3/Testing | Identified Null Cannon 19325 | -3/Testing | Discovered new exit (range 13) 19332 | -3/Testing | Entered Research 19332 | -2/Research | Evolved 2 slots: Utility x2 19350 | -2/Research | Identified exit to DSF 19350 | -2/Research | Entered DSF 19363 | -2/DSF | Found Adv. Force Booster 19365 | -2/DSF | Found Adv. Force Booster 19371 | -2/DSF | Additional patrols routed to DSF 19372 | -2/DSF | Discovered new exit (range 14) 19377 | -2/DSF | Entered Access 19377 | -1/Access | Evolved 2 slots: Propulsion x1, Utility x1 19408 | -1/Access | Lost 5 parts (3n1u1w) 19441 | -1/Access | Spotted B-99 Colossus 19502 | -1/Access | Energy Cycler disabled 19551 | -1/Access | Core integrity fell below 50% 19570 | -1/Access | Lost 6 parts (2n4u) 19589 | -1/Access | Core integrity fell below 20% 19596 | -1/Access | Destroyed by G-73 Enforcer with Phase Gun Last Messages --------------- Gui. Micro-nuke Launcher Adv. Particle Accelerator 19573_ #NFDJNKACAH=C&MOCSZYUJPPNKTIZTHJ 19573_ Biometal Heavy Treads destroyed. 19582_ Centrium Leg destroyed. 19585_ Imp. Trap Extractor dropped Dirty Bomb Trap. 19585_ Installed Dirty Bomb Trap. 19586_ Imp. Trap Extractor dropped Dirty Bomb Trap. 19586_ S-43 Plague triggered Dirty Bomb Trap. 19586_ An explosion rips through the floor. 19586_ Imp. Trap Extractor destroyed. 19586_ S-43 Plague destroyed. 19586_ S-43 Plague shuts down. 19587_ Installed Dirty Bomb Trap. 19587_ Critical hit (Burn: +37). 19588_ S-43 Plague destroyed. 19588_ Enh. Optical Array severed. 19589_ P-80 Master resets S-43 Plague, system corruption cleaned. 19590_ P-80 Master resets G-73 Enforcer, system corruption cleaned. 19595_ P-80 Master resets L-61 Swordsman, system corruption cleaned. Map ----- +----------------------------------------------------+ | ????????????????# #???# #????# | | ????????????????# #???# #????# | | ????????????????##/#####+#???# ###### " | | ?????????????????# #?????????# "" | | ?????????????????# #?????????# G !! | | ?????????????????# ##### ##### "" !! | | ?????????????????# " ! | | ????????????????##/########### | | ????????????????# """T""" # | | ????????????????# # | | ????????????????# # # """"T"""" # | | ????????????????# # #"""""""""""# | | ????????????????# # ############# | | ????????????????# / #???????????? | | ????????????????# """"" # #???????????? | | ????????????????# """""""" # #???????????? | | ????????????????# """""""" # #???????????? | | ????????????????# """"" # #???????????? | | ????????????????# # #???????????? | | ????????????????# # #???????????? | | ????????????????###/########## #???????????? | | ??????????????????# #????????# #???????????? | | ??????????????????# #????????# #???????????? | | ????????###########g########## #???????????? | | ????????# g #???????????? | | ????????# sgl @ #???????????? | | ????????# l p #???????????? | | ????????# g s #???????????? | | ????????# g #???????????? | | ????????# gs #???????????? | | ????????# [ % ^ #???????????? | | ???########";%;;######################???????????? | | ???# ^ #???????????????????????????? | | ???# #???????????????????????????? | | ???# #???????????????????????????? | | ???# #???????????????????????????? | | ???# #???????????????????????????? | | ???# #???????????????????????????? | | ???# #???????????????????????????? | | ???###################???????????????????????????? | | | | | | | | | | | | | | | | | | | | | +----------------------------------------------------+ Best States ------------- Heat Dissipation 56 Coolant Potential 120 Energy Generation 54 Energy Capacity 540 Matter Stores 300 Matter Capacity 300 Sight Range 22 Robot Scan Range 18 Terrain Scan Range 30 Terrain Scan Density 10 Jamming Range 16 Cloak Strength 4 Power Amplification 80 Armor Coverage 800 Resistance: KI 30 Resistance: EM 75 Propulsion Shielding 90 Utility Shielding 90 Weapon Shielding 90 Evasion (%) 68 Melee Accuracy 8 Launcher Accuracy 20 Recoil Reduction 4 Force Boost 40 Offensive Hacking 28 Defensive Hacking 36 Authchip Count 3 Trap Extractor Capacity 6 Item Schematics ----------------- Imp. Sensor Array | -9/Materials | Scanalyzed Imp. Trap Extractor | -9/Materials | Scanalyzed Mni. Grenade Launcher | -9/Materials | Scanalyzed Enh. Nuclear Core | -8/Materials | Scanalyzed System Shield | -8/Materials | Scanalyzed Imp. Utility Shielding | -8/Materials | Scanalyzed Impulse Thruster | -7/Data Miner | Free Adv. Trap Scanner | -7/Data Miner | Free Tesla Rifle | -7/Data Miner | Free Imp. Kinecellerator | -7/Data Miner | Free Cmb. Gravmag System | -7/Data Miner | Free Imp. Heavy Machine Gun | -7/Data Miner | Free Exp. Propulsion Shielding | -7/Data Miner | Free Cld. Aerolev Unit | -7/Data Miner | Free Lgt. Regenerative Plating | -7/Data Miner | Free Combat Drone Bay | -7/Data Miner | Free Adv. Reaction Control System | -6/Factory | Hacked Launcher Loader | -6/Factory | Scanalyzed Imp. Weapon Shielding | -6/Factory | Scanalyzed Scatter Rocket Array | -6/Factory | Scanalyzed Adv. Terrain Scanner | -6/Factory | Scanalyzed Imp. Gravmag System | -6/Factory | Hacked Adv. Hacking Suite | -6/Factory | Hacked Cmb. Airjet | -6/Factory | Scanalyzed Imp. Transmission Jammer | -5/Factory | Hacked Imp. System Restoration Module | -5/Factory | Hacked Imp. System Shield | -5/Factory | Hacked Exp. Utility Shielding | -5/Factory | Hacked Adv. Powered Armor | -5/Factory | Hacked Adv. Sensor Array | -5/Factory | Hacked Adv. Transmission Jammer | -5/Factory | Scanalyzed Imp. Propulsion Shielding | -5/Factory | Scanalyzed Adv. System Shield | -5/Factory | Hacked Neutrino Core | -5/Factory | Hacked Mic. Fission Core | -5/Factory | Hacked Assault Drone Bay | -5/Zhirov | Free Exp. Heat Sink | -5/Zhirov | Free Exp. Optical Array | -5/Zhirov | Free Imp. Arc Thrower | -5/Zhirov | Free Arm. Heavy Treads | -4/Factory | Hacked Lrn. Terrain Scanner | -4/Factory | Hacked Adv. Power Amplifier | -4/Factory | Hacked Hyp. Railgun | -4/Factory | Hacked Exp. Targeting Computer | -4/Factory | Hacked Adv. Melee Analysis Suite | -4/Factory | Hacked Nanoactuators | -4/Factory | Hacked Cmb. Antigrav System | -4/Armory | Hacked Biometal Medium Treads | -4/Armory | Hacked Robot Schematics ------------------ W-25 Informer | -7/Data Miner | Free M-28 Smith | -7/Data Miner | Free H-66 Slayer | -7/Data Miner | Free X-57 Shotgunner | -7/Data Miner | Free P-60 Hacker | -7/Data Miner | Free G-50 Soldier | -7/Data Miner | Free Fabricated ------------ Exp. Propulsion Shielding | x1 | -6/Factory | Authchip Combat Drone Bay | x1 | -6/Factory | Authchip Adv. Hacking Suite | x1 | -6/Factory | Authchip Cmb. Gravmag System | x2 | -6/Factory Cmb. Gravmag System | x2 | -5/Factory | Authchip Cmb. Gravmag System | x2 | -5/Factory | Authchip Exp. Utility Shielding | x1 | -5/Factory Exp. Propulsion Shielding | x1 | -5/Factory Adv. Hacking Suite | x1 | -5/Factory | Authchip Fusion Bomb Launcher | x1 | -4/Factory | Preloaded Adv. Powered Armor | x1 | -4/Factory | Authchip Adv. Powered Armor | x1 | -4/Factory | Authchip Cmb. Gravmag System | x2 | -4/Armory | Authchip Cmb. Antigrav System | x2 | -4/Armory Alien Tech Used ----------------- Core Expander Integrated Reactor Transdimensional Reconstructor Achievements -------------- None Challenges ------------ None Game ------ Seed NetworkChipPerforator Manual? 0 Play Time 03:47:01 Cumulative 623.0 hours Start 2022.04.30 @ 22:26:05 End 2022.05.01 @ 02:40:57 Sessions 1 Manual Loads 0 Difficulty Rogue Special Mode None Game No. 584 Rogue 584 Adventurer 0 Explorer 0 Win Type - Total 22 Types 10/4/4/1/1/0/1/1/0 Lore% 88 Gallery% 95 Achievement% 77 Wizard Run 0 Options --------- ASCII 0 Keyboard 0 Movement Mouse Keybinds 1 Fullscreen 2 Font 24/Smallcaps Map View 76x50 Tactical HUD 1 Map Filters NONE Filters NONE Steam 1 RUN: 54acf224-bcd6-4e01-8103-ee902b26a8df